Cogmind - Beta 13 @@@ ROGUE MODE // 2024.06.28 @ 22:43:08 Player: COGMIND Result: Destroyed by P-60 Hacker with Shock Rifle Performance ------------- Evolutions (3) 1500 Regions Visited (7) 1400 Robots Destroyed (47) 235 Value Destroyed (1321) 1321 Prototype IDs (2) 40 Alien Tech Used (0) 0 Bonus (74) 74 TOTAL SCORE: 4570 Bonus ------- Follower Combat Kills 74 Cogmind --------- Core Integrity 0/700 Matter 124/300 Energy 100/100 System Corruption 13% Temperature Cool (0) Movement Core (1400) Ox27 Location -7/Storage Parts ------- > --- POWER (3) -------- (None) > --- PROPULSION (2) --- (None) > --- UTILITY (5) ------ Huge Storage Unit Melee Analysis Suite > --- WEAPON (3) ------- Power Maul > --- INVENTORY (25) --- Energy Filter Improved Utility Shielding Improved Shield Generator Missile Launcher Power Maul Peak State ------------ > --- POWER ------------ Ion Engine Improved Ion Engine Nuclear Core > --- PROPULSION ------- Light Treads Armored Treads > --- UTILITY ---------- Huge Storage Unit Compact Battery High-capacity Matter Pod Melee Analysis Suite Hardened Medium Armor Plating > --- WEAPON ----------- Missile Launcher Power Maul > --- INVENTORY -------- Flight Unit Flight Unit Sensor Array Energy Filter Energy Filter Improved Utility Shielding Improved Shield Generator Minigun Power Maul [Rating: 30] Favorites ----------- Power Ion Engine Engine Ion Engine Power Core Nuclear Core Propulsion Light Treads Treads Light Treads Leg Aluminum Leg Flight Unit Cesium-ion Thruster Utility Huge Storage Unit Device Shield Generator Storage Huge Storage Unit Processor Melee Analysis Suite Protection Hardened Medium Armor Plating Weapon Assault Rifle Ballistic Gun Assault Rifle Launcher Rocket Launcher Impact Weapon Power Maul Build | -11 -10 -10 -9 -9 -8 -7 -7 ------- Run | Yrd Mat Min Mat Min Mat Fac Sto Slots Evolved 6 | . . . 2 . 2 2 . Power 2 | . . . 1 . 1 . . Propulsion . | . . . . . . . . Utility 3 | . . . 1 . 1 1 . Weapon 1 | . . . . . . 1 . Parts Attached 62 | 6 8 . 17 3 16 3 9 Power 13 | 1 2 . 2 1 4 . 3 Engine 9 | 1 2 . 2 1 3 . . Core 4 | . . . . . 1 . 3 Reactor . | . . . . . . . . Propulsion 14 | 2 2 . 6 . 1 1 2 Treads 8 | . 2 . 4 . 1 1 . Leg 2 | 2 . . . . . . . Wheel . | . . . . . . . . Hover . | . . . . . . . . Flight 4 | . . . 2 . . . 2 Utility 14 | 1 2 . 4 . 4 1 2 Device 6 | . . . 4 . . . 2 Storage 5 | 1 2 . . . 2 . . Processor 1 | . . . . . 1 . . Hackware . | . . . . . . . . Protection 2 | . . . . . 1 1 . Artifact . | . . . . . . . . Weapon 21 | 2 2 . 5 2 7 1 2 Energy Gun . | . . . . . . . . Energy Cannon . | . . . . . . . . Ballistic Gun 10 | 2 2 . 3 1 1 . 1 Ballistic Cannon . | . . . . . . . . Launcher 7 | . . . 2 1 3 . 1 Special Weapon . | . . . . . . . . Impact Weapon 4 | . . . . . 3 1 . Slashing Weapon . | . . . . . . . . Piercing Weapon . | . . . . . . . . Special Melee Weapon . | . . . . . . . . Unidentified Prototypes . | . . . . . . . . Parts Lost 26 | . . . 2 2 7 . 15 Power 8 | . . . . 2 1 . 5 Propulsion 5 | . . . . . 1 . 4 Utility 10 | . . . 2 . 3 . 5 Weapon 3 | . . . . . 2 . 1 Highest Loss Streak 7 | . . . 2 1 4 . 7 To Critical Strikes . | . . . . . . . . Average Slot Usage (%) 88 | . 92 100 99 94 80 84 62 Engine 16 | . 14 14 22 16 18 15 5 Core 1 | . . . . . 2 7 6 Treads 18 | . 10 28 20 22 17 15 8 Leg 2 | . 17 . . . . . . Device 8 | . . . 21 22 11 . . Storage 18 | . 21 28 11 11 13 23 19 Processor 2 | . . . . . 3 7 7 Protection 1 | . . . . . 2 7 1 Ballistic Gun 14 | . 27 28 21 16 3 . 2 Impact Weapon 2 | . . . . . 4 7 7 Naked Turns . | . . . . . . . . Heaviest Build 118 | 11 90 90 96 100 107 115 118 Greatest Support 40 | 20 40 40 40 40 40 40 40 Greatest Overweight (x) 30 | 1 4 2 9 2 4 2 30 Average Overweight (x) 1 | . . 2 2 2 2 2 5 Largest Inventory Capacity 25 | 8 25 25 25 25 25 25 25 Average Capacity 23 | 7 17 25 25 25 25 25 25 Most Carried 12 | 8 11 12 11 8 12 11 11 Average Carried 9 | 3 5 11 9 5 9 9 8 Final Capacity 25 | 8 25 25 25 25 25 25 25 Final Carried 12 | 4 11 12 6 8 11 10 5 Class Distribution -------------------- 92% | Mutant 7% | Scavenger-Mutant Dominant Class ---------------- Mutant | -10/Materials Mutant | -10/Mines Mutant | -9/Materials Mutant | -9/Mines Mutant | -8/Materials Mutant | -7/Factory Mutant | -7/Storage Resources | -11 -10 -10 -9 -9 -8 -7 -7 ----------- Run | Yrd Mat Min Mat Min Mat Fac Sto Matter Collected 1234 | 251 60 78 398 109 208 . 130 Remotely . | . . . . . . . . Salvage Created 1255 | . 112 . 564 186 263 . 130 Parts 96 | . 20 . 38 16 15 . 7 Haulers Intercepted . | . . . . . . . . Recyclers Shooed 1 | . . . 1 . . . . Parts Field Recycled . | . . . . . . . . Retrieved Matter . | . . . . . . . . Parts Self-Destructed . | . . . . . . . . Prevented . | . . . . . . . . Kills | -11 -10 -10 -9 -9 -8 -7 -7 ------- Run | Yrd Mat Min Mat Min Mat Fac Sto Combat Hostiles Destroyed 38 | . 4 . 14 7 8 . 5 Guns 23 | . 4 . 10 4 1 . 4 AOE 12 | . . . 4 3 5 . . Classes Destroyed 9 | . 4 . 3 1 1 . . Worker 3 | . 2 . 1 . . . . Builder 1 | . 1 . . . . . . Tunneler 1 | . . . 1 . . . . Operator 1 | . . . . . 1 . . Watcher 3 | . 2 . . . 1 . . Swarmer 14 | . 4 . . 3 3 . 4 Grunt 17 | . . . 11 2 4 . . Brawler 2 | . . . . 2 . . . Sentry 5 | . . . 3 . 1 . 1 Best Kill Streak 7 | . 7 . 4 3 3 . 4 Combat Bots Only 4 | . 4 . 4 3 3 . 4 Max Kills in Single Turn 3 | . 3 . 2 2 3 . 1 Gunslinging . | . . . . . . . . Exploded 3 | . . . 2 2 3 . . Melee . | . . . . . . . . Uniques/NPCs Destroyed . | . . . . . . . . Combat | -11 -10 -10 -9 -9 -8 -7 -7 -------- Run | Yrd Mat Min Mat Min Mat Fac Sto Hostile Shots Fired 497 | . 73 3 105 41 47 . 228 Missed 107 | . 23 3 22 12 8 . 39 Damage Taken 4451 | . 398 7 808 261 684 . 2293 Core 1023 | . 45 . 121 45 104 . 708 Absorbed by Shields 644 | . . . 304 104 236 . . Core Remaining (%) 80 | 100 . 82 . 58 81 . . Volleys Fired 111 | . 13 2 47 16 18 . 15 Largest 2 | . 2 2 2 2 2 . 1 Hottest 53 | . 40 40 53 53 53 . 25 Shots Fired 199 | . 26 4 93 30 31 . 15 Gun 184 | . 26 4 90 27 22 . 15 Cannon . | . . . . . . . . Launcher 15 | . . . 3 3 9 . . Special . | . . . . . . . . Kinetic 184 | . 26 4 90 27 22 . 15 Thermal . | . . . . . . . . Explosive 15 | . . . 3 3 9 . . Electromagnetic . | . . . . . . . . Robot Hit Streak 17 | . 3 3 17 11 14 . 4 Robot Miss Streak 5 | . 4 1 5 1 4 . 1 Penetration Max . | . . . . . . . . Secondary Targets 3 | . 1 . . 2 . . . Max Gunslinging Chain 1 | . 1 . . 1 . . . Shots Hit Robots 142 | . 10 3 64 25 19 . 21 Core Hits 71 | . 8 1 30 10 14 . 8 Critical Kills . | . . . . . . . . Critical Parts Destroyed 2 | . . . . 1 . . 1 Critical Strikes 2 | . . . . 1 . . 1 Destroy 1 | . . . . 1 . . . Smash 1 | . . . . . . . 1 Melee Attacks 16 | . . . . . 6 . 10 Impact 16 | . . . . . 6 . 10 Slashing . | . . . . . . . . Piercing . | . . . . . . . . Sneak Attacks . | . . . . . . . . Combat Hostiles . | . . . . . . . . Follow-up Attacks . | . . . . . . . . Damage Inflicted 3283 | . 346 39 1148 565 667 . 518 Guns 1516 | . 97 39 723 285 160 . 212 Cannons . | . . . . . . . . Explosions 1283 | . 249 . 425 280 329 . . Melee 484 | . . . . . 178 . 306 Ramming . | . . . . . . . . Kinetic 1516 | . 97 39 723 285 160 . 212 Thermal 249 | . 249 . . . . . . Explosive 1034 | . . . 425 280 329 . . Electromagnetic . | . . . . . . . . Impact 484 | . . . . . 178 . 306 Slashing . | . . . . . . . . Piercing . | . . . . . . . . Highest Corruption 13 | . . . . 2 . . 13 Average Corruption 4 | . . . . 2 . . 5 Corruption Purged . | . . . . . . . . Corruption Blocked . | . . . . . . . . Effects 2 | . . . . . . . 2 Message Errors 1 | . . . . . . . 1 Matter Fused 1 | . . . . . . . 1 Overload Shots . | . . . . . . . . Overflow Damage 184 | . 58 . 6 10 51 . 59 Projectiles . | . . . . . . . . Explosions 74 | . 58 . 6 10 . . . Melee 110 | . . . . . 51 . 59 Knockbacks . | . . . . . . . . Impact . | . . . . . . . . Kinetic . | . . . . . . . . Secondary . | . . . . . . . . Self-Inflicted Damage 243 | . . . 71 44 128 . . Shots 9 | . . . 3 2 4 . . Rammed . | . . . . . . . . Targets Rammed . | . . . . . . . . Kicked . | . . . . . . . . Crushed . | . . . . . . . . Highest Temperature 49 | . . . 28 . 49 . 20 Average Temperature 14 | . . . 7 . 25 . 8 Received Heat Transfer 721 | . . . 342 52 189 . 138 Siege Activations . | . . . . . . . . Robots Corrupted . | . . . . . . . . Combat Hostiles . | . . . . . . . . Parts Fried 6 | . . . . . 6 . . Impact Corruptions 7 | . . . . . 4 . 3 Robots Melted . | . . . . . . . . Combat Hostiles . | . . . . . . . . Parts Melted . | . . . . . . . . Heat Transferred 150 | . 150 . . . . . . Parts Sabotaged . | . . . . . . . . Parts Stolen . | . . . . . . . . Parts Stripped . | . . . . . . . . Power Chain Reactions . | . . . . . . . . Alert | -11 -10 -10 -9 -9 -8 -7 -7 ------- Run | Yrd Mat Min Mat Min Mat Fac Sto Peak Influence 320 | . 249 58 293 291 320 23 95 Initial 114 | . . 38 20 114 113 23 . Average 65 | . 98 18 72 228 85 18 35 Maximum Alert Level 1 | . 1 . 1 1 1 . . Low Security (%) 85 | 100 61 100 83 4 84 100 100 Level 1 14 | . 38 . 16 95 15 . . Level 2 . | . . . . . . . . Level 3 . | . . . . . . . . Level 4 . | . . . . . . . . Level 5 . | . . . . . . . . High Security . | . . . . . . . . Max Security . | . . . . . . . . Squads Dispatched 3 | . 1 . 1 . . . 1 Investigation 1 | . 1 . . . . . . Extermination 1 | . . . . . . . 1 Reinforcement 1 | . . . 1 . . . . Assault . | . . . . . . . . Garrison . | . . . . . . . . Intercept . | . . . . . . . . Searches Triggered . | . . . . . . . . Construction Impeded . | . . . . . . . . Haulers Reinforced . | . . . . . . . . Active Scanning Responses . | . . . . . . . . Cargo Convoy Interrupts . | . . . . . . . . Stealth | -11 -10 -10 -9 -9 -8 -7 -7 --------- Run | Yrd Mat Min Mat Min Mat Fac Sto Distress Signals 4 | . . . 2 . 1 . 1 Communications Jammed . | . . . . . . . . Distress Signals . | . . . . . . . . Times Spotted 70 | . 13 5 22 7 16 . 7 Peak Tracking Total 7 | . 7 2 4 3 3 . 5 Tactical Retreats 2 | . . . . . 2 . . Traps | -11 -10 -10 -9 -9 -8 -7 -7 ------- Run | Yrd Mat Min Mat Min Mat Fac Sto Traps Triggered . | . . . . . . . . Indirectly . | . . . . . . . . Trap Hack Attempts . | . . . . . . . . Triggered . | . . . . . . . . Disarmed . | . . . . . . . . Reprogrammed . | . . . . . . . . Reused . | . . . . . . . . Traps Extracted . | . . . . . . . . Installed . | . . . . . . . . Triggered . | . . . . . . . . Machines | -11 -10 -10 -9 -9 -8 -7 -7 ---------- Run | Yrd Mat Min Mat Min Mat Fac Sto Machines Disabled 6 | . 6 . . . . . . Max in Single Turn 6 | . 6 . . . . . . Machines Repaired . | . . . . . . . . Machines Dismantled . | . . . . . . . . Machines Sabotaged . | . . . . . . . . Overloaded Fab Kills . | . . . . . . . . Hacking | -11 -10 -10 -9 -9 -8 -7 -7 --------- Run | Yrd Mat Min Mat Min Mat Fac Sto Machines Accessed 6 | . 3 . 2 . 1 . . Terminals 6 | . 3 . 2 . 1 . . Fabricators . | . . . . . . . . Repair Stations . | . . . . . . . . Recycling Units . | . . . . . . . . Scanalyzers . | . . . . . . . . Garrison Access . | . . . . . . . . Total Hacks 24 | . 10 . 10 . 4 . . Successful 14 | . 8 . 5 . 1 . . Failed 10 | . 2 . 5 . 3 . . Catastrophic 1 | . . . 1 . . . . Database Lockouts . | . . . . . . . . Manual 1 | . 1 . . . . . . Terminals 24 | . 10 . 10 . 4 . . Fabricators . | . . . . . . . . Repair Stations . | . . . . . . . . Recycling Units . | . . . . . . . . Scanalyzers . | . . . . . . . . Garrison Access . | . . . . . . . . Terminal Hacks 14 | . 8 . 5 . 1 . . Record 6 | . 2 . 4 . . . . Robot Analysis 1 | . 1 . . . . . . Prototype ID Bank 1 | . 1 . . . . . . Security Status 1 | . 1 . . . . . . Recall Investigation 2 | . 1 . 1 . . . . Zone Layout 3 | . 2 . . . 1 . . Fabricator Hacks . | . . . . . . . . Repair Station Hacks . | . . . . . . . . Recycling Unit Hacks . | . . . . . . . . Scanalyzer . | . . . . . . . . Garrison Access Hacks . | . . . . . . . . Unauthorized Hacks . | . . . . . . . . Terminals . | . . . . . . . . Fabricators . | . . . . . . . . Repair Stations . | . . . . . . . . Recycling Units . | . . . . . . . . Scanalyzers . | . . . . . . . . Garrison Access . | . . . . . . . . Data Cores Recovered 1 | . . . . . 1 . . Used . | . . . . . . . . Hacking Detections 5 | . 2 . 2 . 1 . . Full Trace Events 1 | . 1 . . . . . . Feedback Events . | . . . . . . . . Feedback Blocked . | . . . . . . . . Robot Schematics Acquired . | . . . . . . . . Robots Built . | . . . . . . . . Authchips . | . . . . . . . . Time . | . . . . . . . . Total Robot Build Rating . | . . . . . . . . Part Schematics Acquired . | . . . . . . . . Parts Built . | . . . . . . . . Authchips . | . . . . . . . . Time . | . . . . . . . . Total Part Build Rating . | . . . . . . . . Parts Repaired . | . . . . . . . . Time . | . . . . . . . . Parts Recycled . | . . . . . . . . Recycled Matter . | . . . . . . . . Retrieved Matter . | . . . . . . . . Retrieved Components . | . . . . . . . . Parts Scanalyzed . | . . . . . . . . Part Schematics Acquired . | . . . . . . . . Parts Damaged . | . . . . . . . . Bothacking | -11 -10 -10 -9 -9 -8 -7 -7 ------------ Run | Yrd Mat Min Mat Min Mat Fac Sto Used RIF Installer . | . . . . . . . . Robots Hacked . | . . . . . . . . Non-combat . | . . . . . . . . Combat . | . . . . . . . . Robot Hacks Applied . | . . . . . . . . Relay Couplers Released . | . . . . . . . . Fabnet Peak Effective % . | . . . . . . . . Robots Rewired . | . . . . . . . . Allies Hacked . | . . . . . . . . Hacks Repelled . | . . . . . . . . Allies | -11 -10 -10 -9 -9 -8 -7 -7 -------- Run | Yrd Mat Min Mat Min Mat Fac Sto Total Allies 2 | . . 2 . . . . . Largest Group 2 | . . 2 1 . . . . Highest-Rated Group 56 | . . 56 31 . . . . Highest-Rated Ally 31 | . . 31 31 . . . . Total Orders . | . . . . . . . . Ally Attacks 17 | . . 13 4 . . . . Total Damage 254 | . . 168 86 . . . . Kills 6 | . . 5 1 . . . . Allies Corrupted . | . . . . . . . . Allies Melted . | . . . . . . . . Intel | -11 -10 -10 -9 -9 -8 -7 -7 ------- Run | Yrd Mat Min Mat Min Mat Fac Sto Robot Analysis Total 1 | . 1 . . . . . . Derelict Logs Recovered 1 | . . 1 . . . . . Drone Launches . | . . . . . . . . Drone Recoveries . | . . . . . . . . Exploration | -11 -10 -10 -9 -9 -8 -7 -7 ------------- Run | Yrd Mat Min Mat Min Mat Fac Sto Turns Passed 6684 | 92 805 1327 1178 222 1889 487 684 Spaces Moved 2015 | 73 362 412 295 53 544 149 127 Core 44 | 27 . . . . . . 17 Treads 1639 | . 86 412 287 53 544 149 108 Legs 322 | 46 276 . . . . . . Wheels . | . . . . . . . . Hover . | . . . . . . . . Flight 10 | . . . 8 . . . 2 Fastest Speed 50 | 50 120 320 320 320 320 325 325 Average Speed 302 | 105 193 320 331 320 324 325 484 Slowest Speed 1550 | 120 400 320 752 320 480 325 1550 Overloaded Moves . | . . . . . . . . Propulsion Burnouts . | . . . . . . . . Robots Hopped . | . . . . . . . . Cave-ins Triggered . | . . . . . . . . Exploration Rate (%) 28 | 5 43 83 24 17 32 2 18 Regions Visited 7 Branch Regions 3 Pre-discovered Areas . | . . . . . . . . Known Exits Taken 1 | . . . 1 . . . . Unknown Exits Taken 6 | 1 1 1 . 1 1 1 . Scrap Searched . | . . . . . . . . Spaces Dug 6 | . . . . . 6 . . Terrain Destroyed 124 | . 14 . 22 34 54 . . Melee . | . . . . . . . . Projectile . | . . . . . . . . AOE 124 | . 14 . 22 34 54 . . Terrain Rammed . | . . . . . . . . Walls Destroyed . | . . . . . . . . Machines Disabled . | . . . . . . . . Actions | -11 -10 -10 -9 -9 -8 -7 -7 --------- Run | Yrd Mat Min Mat Min Mat Fac Sto Total 2392 | 88 449 418 403 76 632 154 172 Wait 105 | . 39 4 28 1 27 . 6 Move 2008 | 72 361 411 294 52 543 148 127 Hop . | . . . . . . . . Pick Up 58 | 10 18 1 7 3 15 1 3 Fast Attach . | . . . . . . . . Attach 44 | 6 5 . 6 . 16 2 9 Detach 8 | . . . 1 . 5 1 1 Swap 18 | . 3 . 11 3 . 1 . Drop 24 | . 10 . 9 1 2 1 1 Fire 111 | . 13 2 47 16 18 . 15 Melee 16 | . . . . . 6 . 10 Ram . | . . . . . . . . Kick . | . . . . . . . . Crush . | . . . . . . . . Escape Stasis . | . . . . . . . . Rewire . | . . . . . . . . Trap . | . . . . . . . . Miscellaneous . | . . . . . . . . Route ------- -11/Scrapyard -10/Materials -10/Mines -9/Materials (discovered 2 exits: *Min x2) -9/Mines -8/Materials -7/Factory -7/Storage History --------- Turn | Location | Event 8 | -11/Scrapyard | Discovered new exit (range 15) 93 | -11/Scrapyard | Entered Materials 311 | -10/Materials | Build established: Mutant 723 | -10/Materials | Discovered new exit (range 16) 898 | -10/Materials | Entered Mines 905 | -10/Mines | Received a Rocket Launcher from a helpful Derelict 2205 | -10/Mines | Discovered new exit (range 3) 2225 | -10/Mines | Entered Materials 2225 | -9/Materials | Accompanied by 1 ally 2225 | -9/Materials | Evolved 2 slots: Power x1, Utility x1 2226 | -9/Materials | Identified exit to Mines 2230 | -9/Materials | Led the pair of lost Derelicts to an unsafe place 3403 | -9/Materials | Entered Mines 3409 | -9/Mines | Met a Derelict bent on vengeance 3587 | -9/Mines | Discovered new exit (range 6) 3625 | -9/Mines | Entered Materials 3625 | -8/Materials | Evolved 2 slots: Power x1, Utility x1 3985 | -8/Materials | Build established: Scavenger-Mutant 4241 | -8/Materials | Lost 4 parts (1p1n1u1w) 4506 | -8/Materials | Build established: Mutant 5055 | -8/Materials | Discovered new exit (range 16) 5514 | -8/Materials | Entered Factory 5514 | -7/Factory | Evolved 2 slots: Utility x1, Weapon x1 5587 | -7/Factory | Discovered new exit (range 15) 6001 | -7/Factory | Entered Storage 6450 | -7/Storage | Lost 7 parts (3p2n1u1w) 6607 | -7/Storage | Core integrity fell below 50% 6652 | -7/Storage | Lost 6 parts (1p2n3u) 6661 | -7/Storage | Core integrity fell below 20% 6661 | -7/Storage | System corruption reached 10% 6685 | -7/Storage | Destroyed by P-60 Hacker with Shock Rifle Last Messages --------------- 06418_ Y-54 Guardian heat damages core (-16). 06419_ Lgt. Nuclear Core destroyed. 06419_ Com. Battery destroyed. 06419_ Destroyed Gatling Laser. 06419_ Y-54 Guardian system corrupted by crushing effect. 06420_ Y-54 Guardian system terminally corrupted. 06422_ Acquired 39 matter. 06501_ ALERT: Rogue bot located, Programmers report to Storage Zone 6V. 06567_ Acquired Lgt. Nuclear Core. 06576_ Lgt. Nuclear Core destroyed. 06585_ Flight Unit destroyed. 06606_ Sensor Array destroyed. 06612_ Energy Filter destroyed. 06621_ Hcp. Matter Pod destroyed. 06657_ %P ,BY8FIB7 UO>|D8IW Z61LQ [Achievement: System Compromised] 06676_ System corrupted: Matter fused (-8). Map ----- +----------------------------------------------------+ | ??????????????????????????????? | | ??????????????????????????????? | | ####################??????????? | | #??????????? | | #??????????? | | #??????????? | | ###+################??????????? | | * #?????????????????????? | | = #?????????????????????? | | """ """ #?????????????????????? | | """ """ #?????????????????????? | | """ """ ########??????????????? | | """ """ # #??????????????? | | """ """ # """#??????????????? | | # """#??????????????? | | #######+# """#??????????????? | | ??????# # #???????######## | | ??????# # #???????# # | | ??????# ##+#####???????# #? | | ??????# ########????# #? | | ??????# # #????# !! #? | | ?????## # ###### !! #? | | ?????# + + /^ !! #? | | ???+ # # # #? | | ???### # # ##p####? | | ?????# + # @#???? | | ?????# ##+##### ##+####???? | | ?????# ??????# # ??????? | | ?????# ??????# # "??????? | | ?????# ?????# # ""?????? | | ?????# ?????# # ""?????? | | ????? ???? # ????? | | ????######+###???? # ????? | | ?????????????????? #####+????? | | ?????????????????? ??????????? | | ??????????????????##??????????? | | ??????????????????????????????? | | ??????????????????????????????? | | ??????????????????????????????? | | ??????????????????????????????? | | ??????????????????????????????? | | ??????????????????????????????? | | ??????????????????????????????? | | ??????????????????????????????? | | ??????????????????????????????? | | ??????????????????????????????? | | ??????????????????????????????? | | ??????????????????????????????? | | ??????????????????????????????? | | ??????????????????????????????? | +----------------------------------------------------+ Best States ------------- Heat Dissipation 34 Energy Generation 30 Energy Capacity 755 Matter Stores 300 Matter Capacity 500 Sight Range 16 Robot Scan Range 14 Terrain Scan Density 10 Armor Coverage 225 Evasion (%) 55 Melee Accuracy 5 Recoil Reduction 2 Energy Filtering 30 Item Schematics ----------------- None Robot Schematics ------------------ None Fabricated ------------ Nothing Alien Tech Used ----------------- None Achievements -------------- GoHome() System Compromised Challenges ------------ None Game ------ Seed RelayCombatLauncher Manual? 0 Play Time 00:45:41 Cumulative 4.5 hours Start 2024.06.28 @ 21:55:28 End 2024.06.28 @ 22:43:08 Sessions 1 Manual Loads 0 Difficulty Rogue Special Mode None Game No. 9 Rogue 9 Adventurer 0 Explorer 0 Win Type - Total 0 Types 0/0/0/0/0/0/0/0/0 Lore% 1 Gallery% 7 Achievement% 7 Wizard Run 0 Options --------- Layout 1 ASCII 0 Keyboard 0 Movement Arrows Keybinds 0 Fullscreen 1 Font 24/Proggy Map View 50x35 Zoom Use 0% Tactical HUD 1 Map Filters NONE Filters NONE Steam 1 RUN: 525c35b6-7c6a-40ba-a19a-056367ec8733